bitfinex-derivatives/quotes_ETHF0:USTF0_20250114
["timestamp","ask_amount","ask_price","bid_price","bid_amount"]
[1736816771274,0.5004,3146.1,3146.0,0.318]
[1736816771873,0.5004,3146.1,3145.5,1.4222]
[1736816772079,3.7082,3146.1,3145.5,0.9451]
[1736816772272,0.31803,3145.8,3145.5,0.31805]
[1736816772480,0.31803,3145.8,3145.4,3.10606077]
[1736816772685,0.31801,3145.9,3145.4,3.10606077]
[1736816772881,4.0262,3146.1,3145.8,0.31802]
[1736816773083,0.5004,3146.1,3146.0,0.318]
[1736816773479,0.4783,3146.4,3146.2,0.31798]
[1736816773678,0.31798,3146.3,3145.9,0.318]
[1736816773893,0.4783,3146.4,3145.8,3.10606077]
[1736816774081,0.4783,3146.4,3146.2,0.31798]
[1736816774486,0.4783,3146.4,3145.8,3.10606077]
[1736816774487,0.4783,3146.4,3146.3,0.31797]
[1736816774691,0.77613,3146.8,3146.5,0.31795]
[1736816774887,0.31795,3146.6,3146.3,0.31797]
[1736816775385,0.31795,3146.6,3146.0,3.2078]
[1736816775582,3.2078,3146.6,3146.0,3.5258]
[1736816775778,0.31799,3146.1,3146.0,3.2078]
[1736816777186,3.2078,3146.6,3146.0,3.2078]
[1736816777484,0.31797,3146.3,3146.0,3.5258]
[1736816777788,0.31797,3146.3,3146.1,0.31799]
[1736816777985,3.2078,3146.6,3146.1,0.31799]
[1736816778285,0.31794,3146.6,3146.0,3.2078]
[1736816778487,0.4582,3146.8,3146.0,3.2078]
[1736816778691,3.2078,3146.7,3146.1,0.4619]
[1736816778889,0.31794,3146.6,3146.3,0.31796]
[1736816779091,0.31794,3146.6,3146.4,0.31796]
[1736816779388,3.666,3146.8,3146.1,0.4619]
[1736816779389,3.666,3146.8,3146.7,0.31793]
[1736816779791,3.2078,3147.3,3146.5,3.10606077]
[1736816779994,3.52568,3147.3,3147.1,0.31789]
[1736816780291,3.2078,3147.3,3146.8,3.10606077]
[1736816780488,3.2078,3147.3,3147.2,0.31788]
[1736816781078,0.4748,3147.4,3146.9,0.9939]
[1736816781282,0.001,3147.4,3147.3,0.31787]
[1736816781585,0.001,3147.4,3147.3,3.52567]
[1736816782996,4.5128,3148.9,3147.3,3.2078]
[1736816783295,3.2078,3149.9,3148.8,6.31386077]
[1736816783489,0.31767,3149.4,3148.9,0.31771]
[1736816783795,0.31767,3149.4,3149.2,3.2078]
[1736816783992,3.2078,3149.9,3149.2,3.2078]
[1736816784593,0.31762,3149.8,3149.2,3.2078]
[1736816784890,0.31762,3149.8,3149.2,3.52548]
[1736816785196,0.31762,3149.8,3149.2,3.2078]
[1736816785587,3.2078,3149.9,3149.2,3.2078]
[1736816785896,0.31767,3149.3,3149.2,3.2078]
[1736816786096,3.2078,3149.9,3149.2,3.2078]
[1736816786595,0.31764,3149.6,3149.2,3.2078]
[1736816786798,3.2078,3149.9,3149.2,3.2078]
[1736816787291,0.31767,3149.3,3149.2,3.2078]
[1736816788789,0.4885,3150.0,3148.7,3.2078]
[1736816788790,0.31771,3149.0,3148.7,3.2078]
[1736816789293,0.31771,3148.9,3148.7,3.2078]
[1736816789591,0.31771,3149.0,3148.7,3.2078]
[1736816789898,0.4681,3149.2,3148.7,3.2078]
[1736816789899,0.31772,3148.9,3148.7,3.2078]
[1736816790090,0.31772,3148.8,3148.7,3.2078]
[1736816791390,0.31776,3148.4,3148.3,3.2078]
[1736816792698,3.6723,3149.1,3148.3,3.2078]
[1736816792996,0.31776,3148.5,3148.3,3.2078]
[1736816794188,3.6723,3149.1,3148.3,3.2078]
[1736816794189,0.31776,3148.4,3148.3,3.2078]
[1736816795603,3.2078,3148.7,3147.9,3.2078]
[1736816795893,0.3178,3148.0,3147.9,3.2078]
[1736816797293,0.31784,3147.6,3147.5,3.2078]
[1736816798092,3.2078,3147.7,3147.2,3.10606077]
[1736816798300,0.31787,3147.3,3147.2,3.10606077]
[1736816799298,3.2078,3147.7,3147.0,3.2078]
[1736816799496,0.31789,3147.1,3147.0,3.2078]
[1736816800999,1.76773,3147.6,3146.6,3.10606077]
[1736816801000,0.31793,3146.7,3146.6,3.10606077]
[1736816801196,0.31793,3146.7,3146.6,6.31386077]
[1736816801897,0.31793,3146.7,3146.6,3.2078]
[1736816802704,0.31793,3146.8,3146.6,3.2078]
[1736816803399,3.2078,3147.4,3146.6,3.2078]
[1736816803598,0.31793,3146.7,3146.6,3.2078]
[1736816804416,0.31793,3146.8,3146.6,3.2078]
[1736816804807,0.31793,3146.7,3146.6,3.2078]
[1736816805310,3.2078,3147.4,3146.6,3.2078]
[1736816805607,0.31793,3146.8,3146.6,3.2078]
[1736816806201,0.31793,3146.8,3146.7,3.2078]
[1736816807511,0.31793,3146.8,3146.4,1.26685]
[1736816807712,3.2078,3147.4,3146.7,3.2078]
[1736816808013,0.31792,3146.8,3146.7,3.2078]
[1736816808713,0.31789,3147.2,3146.9,0.31791]
[1736816808915,3.2078,3147.4,3146.9,0.31791]
[1736816809110,0.31787,3147.3,3146.9,0.31791]
[1736816809311,3.2078,3147.4,3146.8,0.81452]
[1736816809611,3.2078,3147.4,3147.3,3.10606077]
[1736816809820,3.2078,3148.0,3147.3,6.31386077]
[1736816810121,0.31783,3147.8,3147.6,3.10606077]
[1736816810515,3.6687,3148.5,3147.7,3.2078]
[1736816810816,0.31778,3148.2,3148.1,3.2078]
[1736816811807,0.4609,3148.5,3148.0,2.56043031]
[1736816812017,0.4609,3148.5,3147.7,6.23223031]
[1736816812421,0.31781,3148.0,3147.7,6.23223031]
[1736816812811,0.4609,3148.5,3147.7,6.55005031]
[1736816813012,0.4609,3148.5,3147.7,6.23223031]
[1736816813221,0.31782,3147.8,3147.7,5.76823031]
[1736816813519,0.31782,3147.8,3147.7,3.2078]
[1736816815218,0.4609,3148.5,3147.7,3.2078]
[1736816815418,0.31779,3148.2,3147.8,0.31782]
[1736816815616,0.3178,3148.1,3147.8,0.31782]
[1736816815821,0.3178,3148.1,3147.7,3.52562]
[1736816816018,0.4609,3148.5,3147.7,3.52562]
[1736816816922,0.31778,3148.2,3148.1,3.2078]
[1736816818124,0.4609,3148.5,3148.1,3.2078]
[1736816818623,0.31778,3148.2,3148.1,3.2078]
[1736816819426,0.31777,3148.3,3148.1,3.2078]
[1736816819933,0.31778,3148.2,3148.1,3.2078]
[1736816820121,3.2078,3148.7,3148.1,3.2078]
[1736816820433,0.4856,3149.0,3148.4,3.103496]
[1736816820624,0.31772,3148.8,3148.5,0.31775]
[1736816820924,0.31774,3148.6,3148.5,3.2078]
[1736816821125,0.31773,3148.7,3148.5,3.2078]
[1736816821426,0.4856,3149.0,3148.5,3.2078]
[1736816821632,0.31773,3148.7,3148.5,3.2078]
[1736816822130,0.31773,3148.8,3148.5,3.52555]
[1736816822333,0.3177,3149.0,3148.7,0.31773]
[1736816822530,0.31769,3149.1,3148.9,3.2078]
[1736816822727,0.4951,3149.5,3148.9,3.6622]
[1736816823128,0.3177,3149.0,3148.9,3.6622]
[1736816823527,0.31769,3149.1,3148.9,3.6622]
[1736816823830,0.3177,3149.0,3148.9,4.1453]
[1736816824020,0.3177,3149.0,3148.9,3.6909]
[1736816824629,0.4951,3149.5,3148.9,4.0086]
[1736816824831,0.31768,3149.2,3148.9,4.0086]
[1736816825035,0.49,3149.8,3149.0,3.103496]
[1736816825325,0.29997578,3150.4,3149.7,3.52543]
[1736816825527,0.31758,3150.2,3149.8,0.77362]
[1736816825728,0.31757,3150.3,3150.0,0.3176]
[1736816825928,0.4521,3150.6,3150.1,3.2078]
[1736816826327,0.31752,3150.8,3150.1,3.2078]
[1736816826636,3.2078,3150.9,3150.1,3.2078]
[1736816827834,0.31758,3150.2,3150.1,3.2078]
[1736816828026,0.31757,3150.3,3150.1,3.2078]
[1736816828732,0.31755,3150.5,3150.1,3.2078]
[1736816828935,0.31756,3150.4,3150.1,3.2078]
[1736816829233,0.4521,3151.2,3150.2,3.103496]
[1736816829431,0.4521,3151.2,3150.5,3.2078]
[1736816829432,0.31753,3150.7,3150.5,3.2078]
[1736816829737,0.3175,3151.0,3150.6,0.31753]
[1736816829932,0.3175,3151.0,3150.6,0.4751]
[1736816830130,0.31752,3150.8,3150.6,0.4751]
[1736816830439,0.4521,3151.2,3150.6,0.4751]
[1736816830836,0.31751,3150.9,3150.6,0.4751]
[1736816831134,0.31753,3150.7,3150.6,0.4751]
[1736816831337,3.6599,3151.2,3150.5,3.2078]
[1736816831529,0.31754,3150.6,3150.5,3.2078]
[1736816831930,0.79357,3151.8,3150.6,0.31754]
[1736816832134,0.31749,3151.1,3150.9,3.2078]
[1736816832330,0.79353,3151.9,3150.9,3.2078]
[1736816832530,1.27141249,3152.0,3150.9,3.2078]
[1736816832732,0.3175,3151.0,3150.9,3.2078]
[1736816833931,0.79355,3151.8,3150.9,3.2078]
[1736816833932,0.3175,3151.1,3150.9,3.2078]
[1736816834428,6.56352717,3152.1,3151.0,4.417496]
[1736816834429,3.2078,3152.1,3151.0,4.417496]
[1736816834628,3.2078,3152.1,3151.5,6.311296]
[1736816834830,0.31744,3151.6,3151.5,3.2078]
[1736816835239,3.2078,3152.1,3151.5,3.2078]
[1736816835541,0.31744,3151.6,3151.5,3.2078]
[1736816836033,3.2078,3152.1,3151.5,3.2078]
[1736816836232,0.31744,3151.6,3151.5,3.2078]
[1736816841544,0.31743,3151.7,3151.5,3.2078]
[1736816841745,0.31744,3151.6,3151.5,3.2078]
[1736816843541,1.4366,3152.4,3151.5,3.2078]
[1736816843742,3.2078,3152.1,3151.5,3.2078]
[1736816844041,0.31746,3151.4,3151.3,3.103496]
[1736816844345,3.2078,3152.1,3151.3,3.420966]
[1736816844647,0.31744,3151.6,3151.5,3.2078]
[1736816845348,3.2078,3152.5,3151.5,3.2078]
[1736816845547,0.31742,3151.9,3151.5,3.52524]
[1736816845843,0.3184,3155.3,3151.9,0.05]
[1736816846141,0.3184,3155.3,3154.4,3.103496]
[1736816846142,0.31714,3154.5,3154.4,3.103496]
[1736816846443,20.18969539,3155.4,3154.4,6.311296]
[1736816846645,20.18969539,3155.4,3153.7,0.4676]
[1736816846646,3.17280421,3155.3,3155.0,3.2078]
[1736816847139,3.2078,3156.2,3155.0,3.2078]
[1736816847443,3.2078,3156.2,3154.5,1.353]
[1736816847444,0.31703,3155.6,3155.5,3.2078]
[1736816847841,3.17280421,3155.6,3155.5,3.2078]
[1736816848343,3.48983421,3155.6,3155.5,3.2078]
[1736816848541,3.2078,3155.7,3155.1,3.2078]
[1736816848746,0.31707,3155.2,3155.1,3.2078]
[1736816849051,0.31711,3154.9,3154.7,3.2078]
[1736816849348,3.17280421,3154.8,3154.7,3.2078]
[1736816849738,3.48991421,3154.8,3154.7,3.2078]
[1736816850245,3.17280421,3154.1,3153.5,3.2078]
[1736816850442,3.17280421,3154.1,3153.6,3.103496]
[1736816850644,3.17280421,3154.1,3153.6,3.420726]
[1736816851043,3.17280421,3154.1,3154.0,3.103496]
[1736816851239,3.6768,3154.7,3154.0,3.103496]
[1736816851448,3.17280421,3154.4,3154.0,3.103496]
[1736816851649,3.17280421,3154.1,3154.0,3.103496]
[1736816851845,3.17280421,3154.3,3154.0,3.103496]
[1736816852241,0.31715,3154.5,3154.0,3.103496]
[1736816852444,3.17280421,3154.3,3154.0,3.420686]
[1736816852652,3.99393,3154.7,3154.0,3.420686]
[1736816852653,3.17280421,3154.6,3154.1,0.31718]
[1736816852843,0.469,3154.7,3154.4,3.103496]
[1736816852844,3.17280421,3154.7,3154.4,3.103496]
[1736816853042,3.2078,3155.2,3154.4,3.103496]
[1736816853245,3.2078,3155.2,3154.3,3.2078]
[1736816853246,3.17280421,3154.5,3154.3,3.2078]
[1736816853449,3.17280421,3155.1,3154.6,0.31713]
[1736816853746,0.31711,3154.9,3154.7,3.103496]
[1736816853944,3.17280421,3155.0,3154.7,3.103496]
[1736816854250,3.48991421,3154.9,3154.3,6.628456]
[1736816854443,3.17280421,3154.9,3154.7,3.103496]
[1736816854643,3.2078,3155.2,3154.8,0.31711]
[1736816854845,0.31706,3155.4,3155.1,3.103496]
[1736816855042,3.17280421,3155.3,3155.1,3.103496]
[1736816855251,3.63660421,3155.5,3155.1,3.103496]
[1736816855440,3.2078,3156.2,3155.1,6.311296]
[1736816855748,3.17280421,3155.6,3155.1,6.311296]
[1736816855945,3.17280421,3155.3,3155.1,3.103496]
[1736816856953,0.468,3156.1,3155.1,11.311296]
[1736816857146,3.17280421,3155.9,3155.5,6.311296]
[1736816857449,3.2078,3156.2,3155.8,3.103496]
[1736816857646,3.2078,3156.2,3156.1,3.103496]
[1736816858248,3.2078,3156.8,3156.3,0.31696]
[1736816858549,6.38060421,3156.8,3156.6,3.103496]
[1736816859254,2.84190932,3157.0,3156.6,3.103496]
[1736816859465,3.17280421,3156.8,3156.3,6.311296]
[1736816859751,0.31694,3156.6,3156.3,3.103496]
[1736816859948,0.31693,3156.7,3156.3,3.103496]
[1736816860158,0.31692,3156.7,3156.3,3.103496]
[1736816860354,0.31691,3156.9,3156.3,3.420456]
[1736816860554,0.31693,3156.7,3156.3,3.103496]
[1736816860746,3.17280421,3156.8,3156.3,3.103496]
[1736816860947,0.31695,3156.4,3156.3,3.103496]
[1736816861445,0.485,3156.9,3156.2,3.2078]
[1736816861652,0.31701,3155.9,3155.7,6.311296]
[1736816861951,0.317,3156.0,3155.7,6.311296]
[1736816862658,0.31701,3155.8,3155.7,6.311296]
[1736816864254,6.38060421,3155.8,3155.2,3.2078]
[1736816864446,0.31707,3155.3,3154.8,7.122006]
[1736816865254,0.31707,3155.3,3154.8,6.804896]
[1736816865455,0.31703,3155.7,3155.2,3.52487]
[1736816865744,3.17280421,3155.6,3155.2,6.311296]
[1736816865945,3.2078,3155.7,3155.2,3.2078]
[1736816866154,0.31707,3155.2,3154.8,6.804896]
[1736816866351,3.17280421,3155.3,3154.8,6.804896]
[1736816866751,0.31709,3155.1,3154.8,6.804896]
[1736816867550,3.2078,3155.7,3154.8,6.804896]
[1736816867752,0.3171,3154.9,3154.8,3.2078]
[1736816867950,3.17280421,3155.2,3154.8,6.311296]
[1736816868252,0.31708,3155.1,3154.8,6.311296]
[1736816868555,3.17280421,3155.2,3154.8,3.2078]
[1736816868758,0.31709,3155.1,3154.8,6.311296]
[1736816869453,3.48990421,3154.9,3154.8,6.311296]
[1736816869752,3.48990421,3154.9,3154.8,3.2078]
[1736816869956,3.48990421,3154.9,3154.4,3.103496]
[1736816869957,0.31711,3154.8,3154.4,3.420646]
[1736816870159,3.17280421,3154.8,3154.4,3.103496]
[1736816870454,3.17280421,3154.8,3154.5,0.31714]
[1736816870759,3.17280421,3154.8,3154.4,3.420646]
[1736816870954,3.48992421,3154.8,3154.4,3.420646]
[1736816871354,3.2078,3155.3,3155.0,0.31709]
[1736816871554,0.31704,3155.6,3155.2,3.103496]
[1736816871857,3.48986421,3155.4,3155.2,3.103496]
[1736816872354,3.17280421,3155.4,3155.2,3.103496]
[1736816872559,3.48986421,3155.4,3155.2,3.103496]
[1736816873060,0.3172297,3155.4,3155.2,3.103496]
[1736816874757,0.3172297,3155.4,3155.3,0.31706]
[1736816874949,0.3172297,3155.4,3155.2,3.103496]
[1736816875149,0.3172297,3155.4,3154.7,3.2078]
[1736816875150,0.6342997,3155.3,3154.9,0.3171]
[1736816875650,0.6343297,3155.0,3154.7,3.52492]
[1736816875855,0.3172297,3155.1,3154.8,0.31711]
[1736816876762,0.3172297,3155.1,3154.9,0.3171]
[1736816876959,0.3172297,3155.1,3155.0,3.420586]
[1736816877156,3.52483,3155.7,3155.0,3.103496]
[1736816877364,3.52483,3155.7,3155.3,3.420556]
[1736816877365,0.3172297,3155.4,3155.3,3.420556]
[1736816877958,0.31698,3156.1,3155.8,0.31701]
[1736816878158,0.3172297,3155.9,3155.7,3.103496]
[1736816878457,0.3172297,3155.9,3155.8,0.31701]
[1736816879164,0.3172297,3155.9,3155.6,3.2078]
[1736816879165,0.6342397,3155.9,3155.6,3.52483]
[1736816879364,0.3172297,3155.9,3155.6,3.52483]
[1736816879968,0.3172297,3155.9,3155.7,0.31702]
[1736816880255,0.3172297,3155.9,3155.6,3.52483]
[1736816880457,0.3172297,3155.9,3155.8,0.31701]
[1736816880965,2.84190932,3157.0,3156.9,0.3169]
[1736816881261,0.32002064,3158.0,3157.5,0.31684]
[1736816881461,0.3172297,3157.9,3157.7,3.103496]
[1736816881652,0.3172297,3157.9,3157.6,0.31683]
[1736816881653,0.3172297,3157.8,3157.3,3.103496]
[1736816881857,0.3172297,3157.6,3157.5,0.31684]
[1736816882059,0.3172297,3157.6,3157.4,0.31685]
[1736816882674,0.3172297,3157.6,3157.5,0.31684]
[1736816883267,0.3172297,3157.6,3157.5,3.52464]
[1736816884454,0.3172297,3157.6,3157.1,3.2078]
[1736816884661,0.3172297,3157.6,3157.3,0.31686]
[1736816885067,0.3172297,3157.6,3157.4,0.31684]
[1736816885458,0.3172297,3157.6,3157.5,0.31684]
[1736816885965,0.3172297,3157.6,3157.5,3.52464]
[1736816886265,0.00323064,3158.0,3157.9,0.3168]
[1736816886469,0.32046034,3158.0,3157.9,0.3168]
[1736816886855,0.32046034,3158.0,3157.6,1.366]
[1736816887059,0.32046034,3158.0,3157.8,0.31681]
[1736816887361,0.3172297,3157.8,3157.5,3.2078]
[1736816887760,0.3172297,3157.8,3157.4,3.40672883]
[1736816887964,0.3172297,3157.8,3157.5,3.2078]
[1736816888165,0.3172297,3157.8,3157.7,0.31682]
[1736816888360,0.00323064,3158.0,3157.5,3.2078]
[1736816888562,0.00323064,3158.0,3157.9,0.3168]
[1736816888764,0.00323064,3158.0,3157.9,3.5246]
[1736816889768,0.63726034,3158.0,3157.5,3.2078]
[1736816890070,0.3172297,3157.6,3157.5,3.52464]
[1736816890866,0.3172297,3157.6,3157.1,1.365]
[1736816890867,0.3172297,3157.6,3157.1,3.2078]
[1736816891075,0.3172297,3157.2,3157.1,3.2078]
[1736816891273,0.3172297,3157.4,3157.3,0.31686]
[1736816892171,0.3172297,3157.4,3157.1,3.2078]
[1736816892369,0.3172297,3157.4,3157.3,0.31686]
[1736816892570,0.3172297,3157.4,3157.2,0.31687]
[1736816892776,0.3172297,3157.4,3157.3,0.31686]
[1736816892967,0.3172297,3157.4,3157.1,3.2078]
[1736816893571,0.3172297,3157.4,3157.2,0.31687]
[1736816893767,0.3172297,3157.4,3157.3,0.31686]
[1736816893973,3.21103064,3158.0,3157.1,3.2078]
[1736816894173,3.21103064,3158.0,3157.7,0.31682]
[1736816894578,0.3172297,3157.8,3157.5,3.2078]
[1736816894780,3.52782064,3158.0,3157.5,3.2078]
[1736816894781,0.3172297,3157.6,3157.5,3.2078]
[1736816894985,3.21103064,3158.0,3157.7,0.31682]
[1736816895282,0.00323064,3158.0,3157.9,0.3168]
[1736816897992,0.32046034,3158.0,3157.6,3.52463]
[1736816898192,0.3172297,3157.7,3157.6,3.52463]
[1736816899084,0.3172297,3157.7,3157.3,3.40672883]
[1736816899291,0.3172297,3157.4,3157.3,3.72358883]
[1736816900484,0.3172297,3157.4,3157.2,3.2078]
[1736816900687,0.3172297,3157.3,3157.2,3.2078]
[1736816900883,0.7845297,3157.3,3157.2,3.2078]
[1736816901089,0.7845297,3157.3,3157.2,3.52467]
[1736816901490,0.493,3157.6,3157.5,0.31684]
[1736816902588,0.8102297,3157.6,3157.3,0.31686]
[1736816902790,0.3172297,3157.5,3157.4,0.31685]
[1736816903092,0.3172297,3157.4,3157.2,3.2078]
[1736816903291,0.3172297,3157.4,3157.3,0.31686]
[1736816903599,0.3172297,3157.4,3157.3,3.40107041]
[1736816904093,0.00323064,3158.0,3157.3,8.08421041]
[1736816904294,0.00323064,3158.0,3157.9,3.40101041]
[1736816905092,0.32046034,3158.0,3157.9,3.40101041]
[1736816905687,0.32046034,3158.0,3157.9,3.08421041]
[1736816906095,0.32046034,3158.0,3157.9,3.40101041]
[1736816906794,0.32046034,3158.0,3157.9,3.08421041]
[1736816906997,0.32046034,3158.0,3157.7,3.2078]
[1736816907189,0.6340397,3157.8,3157.7,3.2078]
[1736816907588,0.6340397,3157.8,3157.5,3.08421041]
[1736816907589,0.31683,3157.6,3157.5,3.08421041]
[1736816907794,0.6340597,3157.6,3157.5,3.08421041]
[1736816907998,0.3172297,3157.6,3157.3,3.2078]
[1736816908197,0.3172297,3157.4,3157.3,3.2078]
[1736816908399,0.3172297,3157.4,3156.7,3.08421041]
[1736816908593,0.3172297,3156.8,3156.7,3.40113041]
[1736816909098,0.31693,3156.7,3156.5,3.2078]
[1736816909398,0.3172297,3156.6,3156.5,3.52474]
[1736816909792,0.3172297,3156.6,3156.5,3.2078]
[1736816909992,0.3172297,3156.6,3156.5,3.52474]
[1736816910191,0.3172297,3156.6,3156.5,3.2078]
[1736816910687,0.3172297,3156.6,3156.5,3.52474]
[1736816911798,0.3172297,3156.6,3156.5,3.2078]
[1736816912301,0.6341597,3156.6,3156.5,3.2078]
[1736816912497,1.1056597,3156.6,3156.5,3.2078]
[1736816913292,0.7887297,3156.6,3156.5,3.52474]
[1736816913494,0.7887297,3156.6,3156.5,3.2078]
[1736816913695,3.2078,3157.4,3156.5,5.0]
[1736816913993,0.3172297,3157.1,3157.0,0.31689]
[1736816914193,0.3172297,3157.1,3156.8,3.2078]
[1736816914397,0.3172297,3156.9,3156.7,0.31692]
[1736816914596,0.4606,3157.1,3156.6,3.08421041]
[1736816914803,0.31689,3157.0,3156.6,3.08421041]
[1736816914989,0.3172297,3156.7,3156.6,3.08421041]
[1736816915393,0.3172297,3156.7,3156.6,3.40114041]
[1736816915900,0.4715,3157.7,3157.6,0.31683]
[1736816916097,0.7887297,3157.7,3157.4,3.08421041]
[1736816916295,0.4715,3157.7,3157.6,0.31683]
[1736816916490,0.49753064,3158.0,3157.9,0.3168]
[1736816916997,0.81476034,3158.0,3157.9,0.3168]
[1736816917202,0.32046034,3158.0,3157.9,0.3168]
[1736816917397,0.77312,3158.8,3157.9,0.3168]
[1736816917596,0.3172297,3158.2,3158.1,0.31678]
[1736816918101,0.31664,3159.6,3158.8,0.31671]
[1736816918298,0.3172297,3159.2,3159.1,0.31668]
[1736816918703,0.3172297,3159.2,3159.0,3.2078]
[1736816918704,3.2078,3159.8,3159.0,3.2078]
[1736816918895,0.3172297,3159.7,3159.6,0.31662]
[1736816919092,0.3172297,3159.4,3159.3,3.40087041]
[1736816919500,3.2078,3159.9,3159.6,0.31663]
[1736816919699,0.3172297,3159.4,3159.3,3.40087041]
[1736816919904,0.3172297,3159.7,3159.3,3.08421041]
[1736816920094,0.3172297,3159.7,3159.6,3.40084041]
[1736816924602,3.2078,3159.9,3159.6,3.08421041]
[1736816924903,3.52435,3160.4,3159.9,0.3166]
[1736816925106,3.52435,3160.4,3160.0,3.08421041]
[1736816925307,3.2078,3160.4,3160.0,3.08421041]
[1736816925508,0.3172297,3160.1,3160.0,3.08421041]
[1736816925901,0.3172297,3160.1,3160.0,3.40080041]
[1736816926103,0.3172297,3160.1,3160.0,3.08421041]
[1736816927404,0.3172297,3160.1,3160.0,3.40080041]
[1736816928709,0.3172297,3160.1,3159.4,6.60866041]
[1736816928710,0.31661,3159.9,3159.4,6.60866041]
[1736816928907,0.3172297,3159.5,3159.4,6.60866041]
[1736816929209,0.3172297,3159.5,3159.4,6.29201041]
[1736816929706,0.3172297,3159.5,3159.4,3.08421041]
[1736816929902,0.3172297,3159.5,3158.9,3.2078]
[1736816929903,5.3172297,3159.5,3158.9,3.2078]
[1736816930107,0.31671,3158.9,3158.4,0.31675]
[1736816930301,3.2078,3158.9,3158.3,0.31676]
[1736816930512,0.3172297,3158.1,3158.0,3.52459]
[1736816930813,0.31673,3158.6,3158.1,0.31678]
[1736816931015,0.31673,3158.6,3158.2,0.31677]
[1736816931411,0.31673,3158.6,3158.5,3.08421041]
[1736816931914,0.78172,3158.8,3158.5,3.08421041]
[1736816932104,0.465,3158.8,3158.5,3.08421041]
[1736816932513,0.4917,3159.4,3158.4,6.29201041]
[1736816932707,0.4917,3159.4,3159.0,3.08421041]
[1736816932914,0.31668,3159.1,3159.0,3.08421041]
[1736816933110,0.4657,3159.3,3159.0,3.08421041]
[1736816933413,0.31668,3159.1,3159.0,3.08421041]
[1736816933810,0.4657,3159.3,3159.0,3.08421041]
[1736816934011,0.31668,3159.1,3159.0,3.08421041]
[1736816935002,0.31668,3159.1,3158.6,3.08421041]
[1736816935003,3.2078,3159.1,3158.6,3.08421041]
[1736816935204,0.31673,3158.6,3158.2,3.08421041]
[1736816935509,3.2078,3158.7,3158.2,3.08421041]
[1736816935715,3.2078,3158.7,3158.6,3.08421041]
[1736816935909,3.52453,3158.7,3158.6,3.08421041]
[1736816936802,0.31676,3158.3,3158.2,3.08421041]
[1736816937110,3.2078,3158.3,3157.4,6.29201041]
[1736816937305,0.4596,3158.6,3157.4,6.29201041]
[1736816937306,3.52464,3157.5,3157.4,3.08421041]
[1736816937812,0.31688,3157.1,3157.0,3.08421041]
[1736816938006,0.31687,3157.3,3157.0,3.08421041]
[1736816938310,0.4596,3157.4,3157.0,3.08421041]
[1736816938510,0.31687,3157.3,3157.0,3.08421041]
[1736816938711,0.4596,3157.4,3157.0,3.08421041]
[1736816939208,0.31688,3157.2,3157.0,3.08421041]
[1736816939414,0.4596,3157.4,3157.0,3.08421041]
[1736816939415,0.31688,3157.1,3157.0,3.08421041]
[1736816939710,0.31692,3156.7,3156.6,3.08421041]
[1736816939908,0.31692,3156.8,3156.6,3.08421041]
[1736816940307,0.4824,3157.0,3156.6,3.08421041]
[1736816940308,0.31692,3156.7,3156.6,3.08421041]
[1736816940510,0.4824,3157.0,3156.6,3.08421041]
[1736816940716,0.31692,3156.8,3156.6,3.08421041]
[1736816940915,0.31691,3156.9,3156.6,3.08421041]
[1736816941111,0.4824,3157.0,3156.6,3.08421041]
[1736816941317,0.31692,3156.7,3156.6,3.08421041]
[1736816942216,0.4824,3157.0,3156.2,3.08421041]
[1736816942217,0.31696,3156.3,3156.2,3.08421041]
[1736816942515,3.2078,3156.3,3155.8,3.08421041]
[1736816942816,0.31697,3156.2,3155.8,3.08421041]
[1736816943009,0.31699,3156.1,3155.8,3.08421041]
[1736816943214,0.31698,3156.1,3155.8,3.08421041]
[1736816943414,0.317,3156.0,3155.8,3.08421041]
[1736816943613,0.31698,3156.1,3155.8,3.08421041]
[1736816943805,0.317,3155.9,3155.8,3.08421041]
[1736816944813,0.317,3155.9,3155.6,3.2078]
[1736816944814,0.31702,3155.7,3155.6,3.2078]
[1736816945617,0.31704,3155.5,3155.4,3.08421041]
[1736816945814,3.2078,3155.9,3155.4,3.08421041]
[1736816946120,0.31704,3155.5,3155.4,3.08421041]
[1736816947210,0.31709,3155.1,3155.0,3.08421041]
[1736816947410,0.31708,3155.2,3155.0,3.08421041]
[1736816947608,3.2078,3155.5,3155.0,3.08421041]
[1736816947813,0.31708,3155.1,3155.0,3.08421041]
[1736816948318,3.2078,3155.5,3155.0,3.08421041]
[1736816948507,0.31708,3155.1,3155.0,3.08421041]
[1736816948912,3.52488,3155.1,3155.0,3.08421041]
[1736816949221,0.31711,3154.8,3154.4,6.29201041]
[1736816949414,0.31711,3154.9,3154.4,6.29201041]
[1736816949611,3.2078,3155.1,3154.7,3.08421041]
[1736816949809,0.31711,3154.8,3154.7,3.08421041]
[1736816951511,0.31711,3154.8,3153.9,1.39]
[1736816951512,0.31718,3154.2,3154.0,3.08421041]
[1736816951711,0.4758,3155.0,3154.0,3.08421041]
[1736816951712,3.2078,3154.4,3154.0,3.08421041]
[1736816952111,0.31719,3154.1,3154.0,3.08421041]
[1736816952516,3.2078,3154.4,3154.0,3.08421041]
[1736816952914,0.31719,3154.1,3154.0,3.08421041]
[1736816953924,3.2078,3154.4,3154.0,3.08421041]
[1736816954218,0.31718,3154.2,3154.0,3.08421041]
[1736816954518,3.2078,3154.9,3154.0,3.08421041]
[1736816954710,3.2078,3154.9,3154.8,3.08421041]
[1736816955520,3.2078,3155.3,3154.8,3.08421041]
[1736816955922,0.3171,3154.9,3154.8,3.08421041]
[1736816956117,3.5249,3154.9,3154.8,3.08421041]
[1736816956912,3.2078,3154.9,3154.8,3.08421041]
[1736816957118,0.31709,3155.1,3154.8,3.08421041]
[1736816957419,0.31709,3155.1,3154.8,3.40132041]
[1736816958126,0.31708,3155.2,3154.8,3.40132041]
[1736816958423,3.2078,3155.4,3154.8,3.40132041]
[1736816958424,3.52486,3155.4,3154.8,3.08421041]